[Event "*** Titled Tuesday Blitz"]
[Site "Chess.com"]
[Date "2020.12.29"]
[Round "5"]
[White "Kale36"]
[Black "juli2512"]
[Result "0-1"]
[WhiteElo "2269"]
[BlackElo "2107"]
[TimeControl "180+1"]
[EndTime "10:53:08 PST"]
[Termination "juli2512 won by resignation"]

1. d4 {[%clk 0:03:00.9]} 1... f5 {[%clk 0:02:59.4]} 2. c4 {[%clk 0:02:56.8]}
2... Nf6 {[%clk 0:02:59.5]} 3. Nc3 {[%clk 0:02:56.8]} 3... g6 {[%clk 0:02:59]}
4. h4 {[%clk 0:02:56.6]} 4... Bg7 {[%clk 0:02:58.1]} 5. h5 {[%clk 0:02:55.9]}
5... Nxh5 {[%clk 0:02:57.8]} 6. Rxh5 {[%clk 0:02:55.4]} 6... gxh5 {[%clk
0:02:58]} 7. e4 {[%clk 0:02:55.7]} 7... O-O {[%clk 0:02:56.4]} 8. e5 {[%clk
0:02:53.1]} 8... d6 {[%clk 0:02:55.4]} 9. f4 {[%clk 0:02:50.2]} 9... Qe8 {[%clk
0:02:54.4]} 10. Be3 {[%clk 0:02:45.6]} 10... a6 {[%clk 0:02:43.7]} 11. Be2
{[%clk 0:02:40.8]} 11... h4 {[%clk 0:02:41.5]} 12. Bh5 {[%clk 0:02:35.3]} 12...
Qd8 {[%clk 0:02:37.9]} 13. Nf3 {[%clk 0:02:35.8]} 13... e6 {[%clk 0:02:36.3]}
14. Qe2 {[%clk 0:02:28.2]} 14... dxe5 {[%clk 0:02:35.4]} 15. fxe5 {[%clk
0:02:23.3]} 15... c5 {[%clk 0:02:15.9]} 16. O-O-O {[%clk 0:02:22.3]} 16... Qa5
{[%clk 0:02:13]} 17. d5 {[%clk 0:02:18]} 17... b5 {[%clk 0:02:06.3]} 18. Bxc5
{[%clk 0:01:21.7]} 18... b4 {[%clk 0:01:40.7]} 19. Bxf8 {[%clk 0:01:15.3]} 19...
Bxf8 {[%clk 0:01:40.1]} 20. Nb1 {[%clk 0:01:11.1]} 20... Bh6+ {[%clk 0:01:27.8]}
21. Nfd2 {[%clk 0:01:00.9]} 21... Qxa2 {[%clk 0:01:25.6]} 22. dxe6 {[%clk
0:00:49.9]} 22... Bxe6 {[%clk 0:01:23.1]} 23. Qf2 {[%clk 0:00:41.7]} 23... Qxc4+
{[%clk 0:01:14.4]} 24. Nc3 {[%clk 0:00:38.4]} 24... bxc3 {[%clk 0:01:12.4]} 0-1

[Event "*** Titled Tuesday Blitz"]
[Site "Chess.com"]
[Date "2020.12.29"]
[Round "5"]
[White "grandcoach"]
[Black "Galileo22"]
[Result "0-1"]
[WhiteElo "2118"]
[BlackElo "2353"]
[TimeControl "180+1"]
[EndTime "10:53:14 PST"]
[Termination "Galileo22 won by resignation"]

1. e4 {[%clk 0:01:39.5]} 1... e5 {[%clk 0:02:25.9]} 2. Nf3 {[%clk 0:01:38.4]}
2... Nf6 {[%clk 0:02:25.4]} 3. d4 {[%clk 0:01:37.6]} 3... Nxe4 {[%clk
0:02:17.3]} 4. dxe5 {[%clk 0:01:37.4]} 4... d5 {[%clk 0:02:14.7]} 5. Nbd2 {[%clk
0:01:36]} 5... Nc5 {[%clk 0:02:00.1]} 6. Nb3 {[%clk 0:01:35]} 6... Ne6 {[%clk
0:01:58]} 7. Bd3 {[%clk 0:01:29.2]} 7... c5 {[%clk 0:01:49.6]} 8. c4 {[%clk
0:01:17.1]} 8... Nc6 {[%clk 0:01:37.5]} 9. cxd5 {[%clk 0:01:16.3]} 9... Qxd5
{[%clk 0:01:36.4]} 10. O-O {[%clk 0:01:12.2]} 10... c4 {[%clk 0:01:29.1]} 11.
Bxc4 {[%clk 0:01:04.4]} 11... Qxc4 {[%clk 0:01:28.4]} 12. Bg5 {[%clk 0:01:00.1]}
12... h6 {[%clk 0:01:19.7]} 13. Rc1 {[%clk 0:00:53.6]} 13... Qg4 {[%clk
0:01:13.1]} 14. h3 {[%clk 0:00:49.4]} 14... Qa4 {[%clk 0:01:04.1]} 15. Bh4
{[%clk 0:00:43.4]} 15... g5 {[%clk 0:00:53.6]} 16. Bg3 {[%clk 0:00:39.3]} 16...
Bd7 {[%clk 0:00:51.6]} 17. Nfd2 {[%clk 0:00:27.8]} 17... Be7 {[%clk 0:00:45.7]}
18. Ne4 {[%clk 0:00:27.8]} 18... Qxe4 {[%clk 0:00:44.8]} 19. Nc5 {[%clk
0:00:21.6]} 0-1

[Event "*** Titled Tuesday Blitz"]
[Site "Chess.com"]
[Date "2020.12.29"]
[Round "5"]
[White "jcibarra"]
[Black "Iball95"]
[Result "1-0"]
[WhiteElo "2878"]
[BlackElo "2612"]
[TimeControl "180+1"]
[EndTime "10:53:15 PST"]
[Termination "jcibarra won on time"]

1. d4 {[%clk 0:03:00.9]} 1... d5 {[%clk 0:02:41]} 2. Bf4 {[%clk 0:02:59.3]} 2...
Nf6 {[%clk 0:02:39.4]} 3. e3 {[%clk 0:02:59.7]} 3... e6 {[%clk 0:02:39.9]} 4.
Nf3 {[%clk 0:02:58]} 4... Bd6 {[%clk 0:02:39.9]} 5. Nbd2 {[%clk 0:02:55.1]} 5...
O-O {[%clk 0:02:36.7]} 6. Bd3 {[%clk 0:02:54.3]} 6... b6 {[%clk 0:02:27.5]} 7.
O-O {[%clk 0:02:44.4]} 7... c5 {[%clk 0:02:12.9]} 8. c3 {[%clk 0:02:39.5]} 8...
Ba6 {[%clk 0:02:08.5]} 9. Bxa6 {[%clk 0:02:30.1]} 9... Nxa6 {[%clk 0:02:09.4]}
10. Qe2 {[%clk 0:02:29.8]} 10... Nc7 {[%clk 0:02:06]} 11. Bg5 {[%clk 0:02:15.7]}
11... Be7 {[%clk 0:01:55]} 12. Ne5 {[%clk 0:02:14.5]} 12... Qd6 {[%clk 0:01:46]}
13. Rad1 {[%clk 0:02:03]} 13... h6 {[%clk 0:01:35.7]} 14. Bh4 {[%clk 0:01:59.3]}
14... b5 {[%clk 0:00:40.1]} 15. f4 {[%clk 0:01:36.4]} 15... Nd7 {[%clk
0:00:31.5]} 16. Ne4 {[%clk 0:01:26.8]} 16... dxe4 {[%clk 0:00:18.1]} 17. dxc5
{[%clk 0:01:27.1]} 17... Qxd1 {[%clk 0:00:03.3]} 18. Rxd1 {[%clk 0:01:25.6]}
18... Bxh4 {[%clk 0:00:02.7]} 19. Rxd7 {[%clk 0:01:21.2]} 19... Nd5 {[%clk
0:00:02.8]} 20. Rxf7 {[%clk 0:01:06]} 1-0

[Event "*** Titled Tuesday Blitz"]
[Site "Chess.com"]
[Date "2020.12.29"]
[Round "5"]
[White "jerry_77"]
[Black "garicradomir"]
[Result "1-0"]
[WhiteElo "2499"]
[BlackElo "2290"]
[TimeControl "180+1"]
[EndTime "10:53:16 PST"]
[Termination "jerry_77 won on time"]

1. e4 {[%clk 0:03:00.9]} 1... c5 {[%clk 0:02:58.9]} 2. Nc3 {[%clk 0:02:58]} 2...
e6 {[%clk 0:02:56.3]} 3. Nf3 {[%clk 0:02:58.6]} 3... Nc6 {[%clk 0:02:54.4]} 4.
d4 {[%clk 0:02:58.9]} 4... cxd4 {[%clk 0:02:54.3]} 5. Nxd4 {[%clk 0:02:59.8]}
5... Qc7 {[%clk 0:02:54.8]} 6. Be3 {[%clk 0:02:59.4]} 6... a6 {[%clk 0:02:52.2]}
7. Qd2 {[%clk 0:02:59.4]} 7... Nf6 {[%clk 0:02:51.7]} 8. f3 {[%clk 0:02:59.8]}
8... Bb4 {[%clk 0:02:50.5]} 9. a3 {[%clk 0:03:00.2]} 9... Be7 {[%clk 0:02:49.8]}
10. O-O-O {[%clk 0:02:59.5]} 10... b5 {[%clk 0:02:49.2]} 11. Kb1 {[%clk
0:02:59.2]} 11... Rb8 {[%clk 0:02:49.1]} 12. Na2 {[%clk 0:02:58.9]} 12... b4
{[%clk 0:02:41.7]} 13. Nxc6 {[%clk 0:02:58]} 13... Qxc6 {[%clk 0:02:35.7]} 14.
axb4 {[%clk 0:02:57.5]} 14... d5 {[%clk 0:02:28]} 15. e5 {[%clk 0:02:55.4]}
15... Nd7 {[%clk 0:02:27.1]} 16. f4 {[%clk 0:02:55.8]} 16... Nb6 {[%clk
0:02:21.5]} 17. c3 {[%clk 0:02:42.7]} 17... O-O {[%clk 0:02:11.9]} 18. Bd3
{[%clk 0:02:39.8]} 18... Bd7 {[%clk 0:02:11.2]} 19. h4 {[%clk 0:02:38.4]} 19...
Nc4 {[%clk 0:02:07.7]} 20. Bxc4 {[%clk 0:02:36.8]} 20... Qxc4 {[%clk 0:02:07.7]}
21. Qd3 {[%clk 0:02:37.2]} 21... Qc7 {[%clk 0:01:59.9]} 22. Rh3 {[%clk
0:02:35.6]} 22... Bb5 {[%clk 0:01:57.6]} 23. Qd2 {[%clk 0:02:35.5]} 23... a5
{[%clk 0:01:55.1]} 24. bxa5 {[%clk 0:02:34.8]} 24... Qxa5 {[%clk 0:01:52.8]} 25.
c4 {[%clk 0:02:34.6]} 25... Qxd2 {[%clk 0:01:47.4]} 26. Bxd2 {[%clk 0:02:34.2]}
26... Bxc4 {[%clk 0:01:47.2]} 27. Bc3 {[%clk 0:02:34.6]} 27... Rb3 {[%clk
0:01:38.8]} 28. Nc1 {[%clk 0:02:31.3]} 28... Rb7 {[%clk 0:01:34.3]} 29. h5
{[%clk 0:02:27.9]} 29... Rc8 {[%clk 0:01:30.6]} 30. g4 {[%clk 0:02:26.8]} 30...
Bb3 {[%clk 0:01:21]} 31. Nxb3 {[%clk 0:02:26.2]} 31... Rxb3 {[%clk 0:01:21.9]}
32. Kc2 {[%clk 0:02:26.7]} 32... Rb7 {[%clk 0:01:11.7]} 33. f5 {[%clk
0:02:25.9]} 33... Bb4 {[%clk 0:01:07.3]} 34. fxe6 {[%clk 0:02:25.8]} 34... fxe6
{[%clk 0:01:06.9]} 35. g5 {[%clk 0:02:26.4]} 35... Kf7 {[%clk 0:01:02.3]} 36.
Rf3+ {[%clk 0:02:25]} 36... Ke8 {[%clk 0:00:59]} 37. g6 {[%clk 0:02:24.8]} 37...
h6 {[%clk 0:00:53.2]} 38. Kd3 {[%clk 0:02:21.4]} 38... Bxc3 {[%clk 0:00:34]} 39.
bxc3 {[%clk 0:02:22.3]} 39... Rbc7 {[%clk 0:00:32.1]} 40. Kd2 {[%clk 0:02:19.9]}
40... Kd7 {[%clk 0:00:29.4]} 41. Ra1 {[%clk 0:02:18.9]} 41... Kc6 {[%clk
0:00:21]} 42. Ra6+ {[%clk 0:02:17.8]} 42... Kb5 {[%clk 0:00:21.6]} 43. Rxe6
{[%clk 0:02:17.8]} 43... d4 {[%clk 0:00:22]} 44. cxd4 {[%clk 0:02:16.5]} 44...
Rc1 {[%clk 0:00:20.4]} 45. Rb3+ {[%clk 0:02:14.1]} 45... Kc4 {[%clk 0:00:18.7]}
46. Kxc1 {[%clk 0:02:13]} 46... Kxb3+ {[%clk 0:00:17.8]} 47. Kd2 {[%clk
0:02:13.4]} 47... Kc4 {[%clk 0:00:16.4]} 48. Ke3 {[%clk 0:02:13.6]} 1-0

[Event "*** Titled Tuesday Blitz"]
[Site "Chess.com"]
[Date "2020.12.29"]
[Round "5"]
[White "MasterKroket"]
[Black "Anton_Zhukov04"]
[Result "0-1"]
[WhiteElo "2463"]
[BlackElo "2240"]
[TimeControl "180+1"]
[EndTime "10:53:17 PST"]
[Termination "Anton_Zhukov04 won by checkmate"]

1. d4 {[%clk 0:03:00.9]} 1... Nf6 {[%clk 0:02:59.6]} 2. c4 {[%clk 0:03:01.2]}
2... e6 {[%clk 0:02:59.6]} 3. Nf3 {[%clk 0:03:01.5]} 3... Bb4+ {[%clk
0:02:59.9]} 4. Bd2 {[%clk 0:03:01.4]} 4... c5 {[%clk 0:03:00.4]} 5. Nc3 {[%clk
0:02:59.5]} 5... O-O {[%clk 0:02:55.2]} 6. a3 {[%clk 0:02:56.9]} 6... Bxc3
{[%clk 0:02:54.3]} 7. Bxc3 {[%clk 0:02:57.1]} 7... Ne4 {[%clk 0:02:53.6]} 8. Qd3
{[%clk 0:02:52.4]} 8... Nxc3 {[%clk 0:02:52.4]} 9. bxc3 {[%clk 0:02:49.6]} 9...
Qc7 {[%clk 0:02:51]} 10. e4 {[%clk 0:02:48.8]} 10... d6 {[%clk 0:02:50.2]} 11.
e5 {[%clk 0:02:44.2]} 11... Nc6 {[%clk 0:02:46.4]} 12. Ng5 {[%clk 0:02:32.8]}
12... g6 {[%clk 0:02:44.4]} 13. Qh3 {[%clk 0:02:25.1]} 13... h5 {[%clk 0:02:42]}
14. Be2 {[%clk 0:02:24.1]} 14... Qe7 {[%clk 0:02:22.9]} 15. f4 {[%clk
0:02:17.1]} 15... dxe5 {[%clk 0:02:20.6]} 16. dxe5 {[%clk 0:02:05.1]} 16... f6
{[%clk 0:02:11.9]} 17. exf6 {[%clk 0:02:00.1]} 17... Qxf6 {[%clk 0:02:08.8]} 18.
O-O {[%clk 0:01:48]} 18... e5 {[%clk 0:02:04]} 19. Qh4 {[%clk 0:01:39.2]} 19...
exf4 {[%clk 0:01:59.4]} 20. Bf3 {[%clk 0:01:25.6]} 20... Ne7 {[%clk 0:01:51.8]}
21. Rae1 {[%clk 0:01:02.7]} 21... Nf5 {[%clk 0:01:31.1]} 22. Qxf4 {[%clk
0:01:02.1]} 22... Bd7 {[%clk 0:01:29.2]} 23. Bd5+ {[%clk 0:01:00]} 23... Kh8
{[%clk 0:01:26]} 24. Ne6 {[%clk 0:00:49.9]} 24... Bxe6 {[%clk 0:01:16.8]} 25.
Rxe6 {[%clk 0:00:49.4]} 25... Qxc3 {[%clk 0:01:15.5]} 26. Qg5 {[%clk 0:00:32.6]}
26... Qd4+ {[%clk 0:01:10.3]} 27. Kh1 {[%clk 0:00:19.2]} 27... Ng3+ {[%clk
0:01:08.3]} 28. hxg3 {[%clk 0:00:19.8]} 28... Rxf1+ {[%clk 0:01:07.6]} 29. Kh2
{[%clk 0:00:20.4]} 29... Qg1+ {[%clk 0:01:08]} 30. Kh3 {[%clk 0:00:21.1]} 30...
Qh1# {[%clk 0:01:08.6]} 0-1

[Event "*** Titled Tuesday Blitz"]
[Site "Chess.com"]
[Date "2020.12.29"]
[Round "5"]
[White "jacky72"]
[Black "ehrenfeld"]
[Result "1-0"]
[WhiteElo "2796"]
[BlackElo "2559"]
[TimeControl "180+1"]
[EndTime "10:53:21 PST"]
[Termination "jacky72 won on time"]

1. d4 {[%clk 0:03:00.9]} 1... Nf6 {[%clk 0:02:59.2]} 2. c4 {[%clk 0:03:01.8]}
2... e6 {[%clk 0:02:59.4]} 3. Nf3 {[%clk 0:03:02.3]} 3... Bb4+ {[%clk
0:02:59.2]} 4. Bd2 {[%clk 0:03:02.4]} 4... a5 {[%clk 0:02:58.9]} 5. e3 {[%clk
0:03:02.3]} 5... d6 {[%clk 0:02:49]} 6. Nc3 {[%clk 0:03:01.9]} 6... Nbd7 {[%clk
0:02:47.1]} 7. Bd3 {[%clk 0:03:02.4]} 7... O-O {[%clk 0:02:45.1]} 8. O-O {[%clk
0:03:02.6]} 8... e5 {[%clk 0:02:44.7]} 9. Qc2 {[%clk 0:03:02]} 9... Re8 {[%clk
0:02:41.9]} 10. e4 {[%clk 0:03:02.6]} 10... exd4 {[%clk 0:02:35.1]} 11. Nxd4
{[%clk 0:03:02.6]} 11... Ne5 {[%clk 0:02:22.6]} 12. Rfe1 {[%clk 0:02:58]} 12...
h6 {[%clk 0:02:19.4]} 13. Nd5 {[%clk 0:02:47.5]} 13... Bc5 {[%clk 0:02:17.3]}
14. Bc3 {[%clk 0:02:40.1]} 14... c6 {[%clk 0:02:12.5]} 15. Nf4 {[%clk
0:02:36.3]} 15... Qb6 {[%clk 0:01:59.9]} 16. Nb3 {[%clk 0:02:32]} 16... a4
{[%clk 0:00:30.6]} 17. Nxc5 {[%clk 0:02:31.2]} 17... dxc5 {[%clk 0:00:29.4]} 18.
Bf1 {[%clk 0:02:28.6]} 18... Qc7 {[%clk 0:00:28.4]} 19. Nd3 {[%clk 0:02:27]}
19... Nxd3 {[%clk 0:00:23.3]} 20. Qxd3 {[%clk 0:02:27.4]} 20... Ng4 {[%clk
0:00:20.6]} 21. g3 {[%clk 0:02:24.9]} 21... Ne5 {[%clk 0:00:19.9]} 22. Qe3
{[%clk 0:02:21.2]} 22... Be6 {[%clk 0:00:19.4]} 23. b3 {[%clk 0:02:19.9]} 23...
axb3 {[%clk 0:00:17.6]} 24. axb3 {[%clk 0:02:20.8]} 24... b6 {[%clk 0:00:15]}
25. h3 {[%clk 0:02:14]} 25... Nd7 {[%clk 0:00:12.1]} 26. f4 {[%clk 0:02:12.6]}
26... f6 {[%clk 0:00:11.9]} 27. e5 {[%clk 0:02:08.8]} 27... f5 {[%clk
0:00:11.7]} 28. Bg2 {[%clk 0:02:05.8]} 28... Nf8 {[%clk 0:00:11.6]} 29. Qf3
{[%clk 0:02:06.1]} 29... Bd7 {[%clk 0:00:10.5]} 30. Rad1 {[%clk 0:02:06.4]}
30... Rad8 {[%clk 0:00:09]} 31. Rd6 {[%clk 0:02:06.5]} 31... Ne6 {[%clk
0:00:06]} 32. Red1 {[%clk 0:02:07]} 32... Nd4 {[%clk 0:00:05.7]} 33. Bxd4 {[%clk
0:02:07.1]} 33... cxd4 {[%clk 0:00:05.9]} 34. R1xd4 {[%clk 0:02:08]} 34... c5
{[%clk 0:00:06.4]} 35. Rd1 {[%clk 0:01:57.5]} 35... Be6 {[%clk 0:00:05.2]} 36.
Qc6 {[%clk 0:01:50.8]} 36... Qxc6 {[%clk 0:00:04.8]} 37. Bxc6 {[%clk 0:01:51.7]}
37... Rxd6 {[%clk 0:00:02.7]} 38. Rxd6 {[%clk 0:01:52.6]} 38... Re7 {[%clk
0:00:02.7]} 39. Bd5 {[%clk 0:01:48.3]} 1-0

[Event "*** Titled Tuesday Blitz"]
[Site "Chess.com"]
[Date "2020.12.29"]
[Round "5"]
[White "carloseduar100"]
[Black "KarstenHansch"]
[Result "1-0"]
[WhiteElo "2123"]
[BlackElo "2455"]
[TimeControl "180+1"]
[EndTime "10:53:22 PST"]
[Termination "carloseduar100 won by resignation"]

1. d4 {[%clk 0:03:00.2]} 1... Nf6 {[%clk 0:02:59.4]} 2. Bg5 {[%clk 0:02:59.6]}
2... Ne4 {[%clk 0:02:59.1]} 3. h4 {[%clk 0:02:58.5]} 3... d5 {[%clk 0:02:56.8]}
4. Nd2 {[%clk 0:02:56.9]} 4... Nxd2 {[%clk 0:02:56.2]} 5. Qxd2 {[%clk
0:02:56.1]} 5... h6 {[%clk 0:02:56.4]} 6. Bf4 {[%clk 0:02:56.1]} 6... e6 {[%clk
0:02:56.4]} 7. Nf3 {[%clk 0:02:56]} 7... Bd6 {[%clk 0:02:56.5]} 8. Ne5 {[%clk
0:02:54.1]} 8... Nd7 {[%clk 0:02:55.6]} 9. e3 {[%clk 0:02:47.1]} 9... Nxe5
{[%clk 0:02:55.3]} 10. dxe5 {[%clk 0:02:46.9]} 10... Be7 {[%clk 0:02:55.5]} 11.
Bd3 {[%clk 0:02:46.6]} 11... c6 {[%clk 0:02:54.8]} 12. h5 {[%clk 0:02:44.9]}
12... Qb6 {[%clk 0:02:52.4]} 13. O-O-O {[%clk 0:02:42.2]} 13... Bd7 {[%clk
0:02:50.7]} 14. e4 {[%clk 0:02:42]} 14... O-O-O {[%clk 0:02:49.2]} 15. exd5
{[%clk 0:02:40.2]} 15... cxd5 {[%clk 0:02:45.7]} 16. Qc3+ {[%clk 0:02:21.5]}
16... Qc7 {[%clk 0:02:43]} 17. Qxc7+ {[%clk 0:02:18.6]} 17... Kxc7 {[%clk
0:02:42]} 18. c3 {[%clk 0:02:14.8]} 18... Bg5 {[%clk 0:02:32.4]} 19. Bxg5 {[%clk
0:02:03.8]} 19... hxg5 {[%clk 0:02:33.3]} 20. g4 {[%clk 0:02:03.9]} 20... Kb6
{[%clk 0:02:28.7]} 21. Rdf1 {[%clk 0:02:03.5]} 21... Bc6 {[%clk 0:02:18.8]} 22.
Rh2 {[%clk 0:01:57]} 22... d4 {[%clk 0:02:17.9]} 23. c4 {[%clk 0:01:53.4]} 23...
f6 {[%clk 0:02:06.9]} 24. exf6 {[%clk 0:01:48.2]} 24... gxf6 {[%clk 0:02:06.4]}
25. f4 {[%clk 0:01:48.3]} 25... e5 {[%clk 0:02:06.4]} 26. fxe5 {[%clk
0:01:46.8]} 26... fxe5 {[%clk 0:02:06.7]} 27. Rf6 {[%clk 0:01:41.2]} 27... Rdf8
{[%clk 0:01:45.5]} 28. Rhf2 {[%clk 0:01:39.6]} 28... Rxf6 {[%clk 0:01:45.3]} 29.
Rxf6 {[%clk 0:01:39.1]} 29... Kc7 {[%clk 0:01:43.3]} 30. Rf7+ {[%clk 0:01:33.2]}
30... Kd6 {[%clk 0:01:40.5]} 31. b4 {[%clk 0:01:27.7]} 31... e4 {[%clk
0:01:36.7]} 32. Rf6+ {[%clk 0:01:21.1]} 32... Ke7 {[%clk 0:01:34.6]} 33. Rxc6
{[%clk 0:01:21.1]} 33... bxc6 {[%clk 0:01:34.4]} 34. Bxe4 {[%clk 0:01:21.6]}
34... Kd6 {[%clk 0:01:34.6]} 35. Kd2 {[%clk 0:01:20.4]} 35... a5 {[%clk
0:01:22.9]} 36. a3 {[%clk 0:01:18.4]} 36... axb4 {[%clk 0:01:20.5]} 37. axb4
{[%clk 0:01:18.4]} 37... Rb8 {[%clk 0:01:20]} 38. Kd3 {[%clk 0:01:18.6]} 38...
c5 {[%clk 0:01:18.5]} 39. b5 {[%clk 0:01:15.2]} 39... Ke5 {[%clk 0:01:13.8]} 40.
h6 {[%clk 0:01:14.3]} 40... Kf4 {[%clk 0:01:12.7]} 41. Bf5 {[%clk 0:01:12.5]}
41... Ra8 {[%clk 0:01:09.7]} 42. h7 {[%clk 0:01:12.2]} 42... Re8 {[%clk
0:01:06.4]} 43. b6 {[%clk 0:01:10.3]} 43... Rb8 {[%clk 0:01:04.8]} 44. b7 {[%clk
0:01:09.9]} 44... Ke5 {[%clk 0:01:02.8]} 45. Bc8 {[%clk 0:01:09.8]} 1-0

[Event "*** Titled Tuesday Blitz"]
[Site "Chess.com"]
[Date "2020.12.29"]
[Round "5"]
[White "GameOverBro"]
[Black "CraiggoryC"]
[Result "1-0"]
[WhiteElo "2460"]
[BlackElo "2202"]
[TimeControl "180+1"]
[EndTime "10:53:24 PST"]
[Termination "GameOverBro won on time"]

1. e4 {[%clk 0:03:00.9]} 1... e6 {[%clk 0:02:56.3]} 2. d4 {[%clk 0:02:59.6]}
2... d5 {[%clk 0:02:56.5]} 3. Nd2 {[%clk 0:02:59.1]} 3... Be7 {[%clk 0:02:56.3]}
4. Ngf3 {[%clk 0:02:58.5]} 4... Nf6 {[%clk 0:02:55.9]} 5. e5 {[%clk 0:02:58.3]}
5... Nfd7 {[%clk 0:02:56.6]} 6. c3 {[%clk 0:02:58.5]} 6... c5 {[%clk 0:02:57.1]}
7. Bd3 {[%clk 0:02:56.8]} 7... Nc6 {[%clk 0:02:57.6]} 8. O-O {[%clk 0:02:53.8]}
8... a5 {[%clk 0:02:57.9]} 9. Re1 {[%clk 0:02:52.3]} 9... cxd4 {[%clk 0:02:58]}
10. cxd4 {[%clk 0:02:52.2]} 10... Qb6 {[%clk 0:02:58.6]} 11. a3 {[%clk
0:02:48.8]} 11... Nxd4 {[%clk 0:02:56.8]} 12. Nxd4 {[%clk 0:02:48.4]} 12... Qxd4
{[%clk 0:02:57.2]} 13. Nf3 {[%clk 0:02:48.6]} 13... Qb6 {[%clk 0:02:51.6]} 14.
Qa4 {[%clk 0:02:48.4]} 14... O-O {[%clk 0:02:44.5]} 15. Qg4 {[%clk 0:02:47.8]}
15... Re8 {[%clk 0:01:42.4]} 16. Ng5 {[%clk 0:02:24.6]} 16... Nf8 {[%clk
0:01:23.4]} 17. Qh5 {[%clk 0:02:05.9]} 17... g6 {[%clk 0:01:12.6]} 18. Qh6
{[%clk 0:02:05]} 18... Bd7 {[%clk 0:01:06.4]} 19. Re3 {[%clk 0:01:57.5]} 19...
Bxg5 {[%clk 0:00:54.3]} 20. Qxg5 {[%clk 0:01:58.4]} 20... Rac8 {[%clk
0:00:46.3]} 21. Rh3 {[%clk 0:01:53]} 21... Bb5 {[%clk 0:00:23.5]} 22. Bxb5
{[%clk 0:01:44.6]} 22... Qxb5 {[%clk 0:00:23.2]} 23. Qh6 {[%clk 0:01:44.4]}
23... Qe2 {[%clk 0:00:08.3]} 24. Bg5 {[%clk 0:01:35.7]} 24... Qxe5 {[%clk
0:00:07.2]} 25. Qh4 {[%clk 0:01:22.8]} 25... Qxb2 {[%clk 0:00:05.1]} 26. Rf1
{[%clk 0:01:10.9]} 26... Rc2 {[%clk 0:00:04.1]} 27. Bf6 {[%clk 0:01:10.1]} 27...
Qxa3 {[%clk 0:00:01.3]} 28. Qh6 {[%clk 0:01:08.1]} 1-0

[Event "*** Titled Tuesday Blitz"]
[Site "Chess.com"]
[Date "2020.12.29"]
[Round "5"]
[White "Chessmatus"]
[Black "Efremov_Vlad"]
[Result "1-0"]
[WhiteElo "2447"]
[BlackElo "2261"]
[TimeControl "180+1"]
[EndTime "10:53:27 PST"]
[Termination "Chessmatus won by resignation"]

1. e4 {[%clk 0:03:00.9]} 1... c5 {[%clk 0:03:00]} 2. Nf3 {[%clk 0:03:00.6]} 2...
Nf6 {[%clk 0:02:59.7]} 3. e5 {[%clk 0:02:59.2]} 3... Nd5 {[%clk 0:02:59.5]} 4.
Nc3 {[%clk 0:02:59.9]} 4... Nxc3 {[%clk 0:02:59.7]} 5. dxc3 {[%clk 0:03:00]}
5... e6 {[%clk 0:02:58.8]} 6. Bc4 {[%clk 0:02:53.7]} 6... Nc6 {[%clk 0:02:58.2]}
7. O-O {[%clk 0:02:53.9]} 7... Qc7 {[%clk 0:02:55.6]} 8. Re1 {[%clk 0:02:54.3]}
8... a6 {[%clk 0:02:50.8]} 9. a4 {[%clk 0:02:52.9]} 9... h6 {[%clk 0:02:48.6]}
10. Bf4 {[%clk 0:02:46.1]} 10... b6 {[%clk 0:02:46.6]} 11. Bf1 {[%clk
0:02:07.3]} 11... Bb7 {[%clk 0:02:43.3]} 12. Nd2 {[%clk 0:02:07.7]} 12... O-O-O
{[%clk 0:02:35.1]} 13. Nc4 {[%clk 0:02:06.5]} 13... f6 {[%clk 0:01:57.4]} 14.
Nd6+ {[%clk 0:02:04.3]} 14... Bxd6 {[%clk 0:01:57.6]} 15. exd6 {[%clk
0:02:04.7]} 15... Qb8 {[%clk 0:01:57.8]} 16. Bc4 {[%clk 0:01:46.9]} 16... g5
{[%clk 0:01:56.1]} 17. Bg3 {[%clk 0:01:44]} 17... e5 {[%clk 0:01:41.8]} 18. b4
{[%clk 0:01:38.8]} 18... h5 {[%clk 0:01:33.5]} 19. f3 {[%clk 0:01:29.6]} 19...
cxb4 {[%clk 0:01:15.4]} 20. cxb4 {[%clk 0:01:29.2]} 20... Nd4 {[%clk 0:01:15.5]}
21. c3 {[%clk 0:01:28.8]} 21... Nf5 {[%clk 0:01:14.9]} 22. Bf2 {[%clk 0:01:29]}
22... Qxd6 {[%clk 0:01:13.3]} 23. Qe2 {[%clk 0:01:25.5]} 23... e4 {[%clk
0:00:27.5]} 24. Bxa6 {[%clk 0:01:17.2]} 24... exf3 {[%clk 0:00:23.1]} 25. Bxb7+
{[%clk 0:01:16.9]} 25... Kxb7 {[%clk 0:00:21.9]} 26. Qxf3+ {[%clk 0:01:17.2]}
26... Qc6 {[%clk 0:00:21]} 27. Qxf5 {[%clk 0:01:17.6]} 27... h4 {[%clk
0:00:21.1]} 28. Qe4 {[%clk 0:01:15.8]} 28... Rhe8 {[%clk 0:00:19.3]} 29. Qxc6+
{[%clk 0:01:15.3]} 29... dxc6 {[%clk 0:00:20.2]} 30. Rxe8 {[%clk 0:01:12.7]}
30... Rxe8 {[%clk 0:00:21.1]} 31. Re1 {[%clk 0:01:12.8]} 31... Rxe1+ {[%clk
0:00:20.7]} 32. Bxe1 {[%clk 0:01:12.6]} 32... f5 {[%clk 0:00:21.6]} 33. Kf2
{[%clk 0:01:12.7]} 33... c5 {[%clk 0:00:19.7]} 34. Ke3 {[%clk 0:01:12]} 1-0